[Event "21è Open International d'Echecs de Menton"]
[Site "Menton, France"]
[Date "2024.10.28"]
[Round "2.2"]
[White "Paolo, FORMENTO 2346"]
[Black "Oliver A, JACKSON 2039"]
[Result "1-0"]
[TimeControl "90'+30''/40m + 30'+30''"]
[WhiteTitle "FM"]
[BlackTitle "FM"]
[WhiteFideId "861162"]
[BlackFideId "403156"]
[WhiteElo "2346"]
[BlackElo "2039"]

1. e4 {[%clk 01:30:53]} {[%emt 00:00:06]} c5 {[%clk 01:30:53]} {[%emt
00:00:07]} 2. Nf3 {[%clk 01:31:09]} {[%emt 00:00:14]} e6 {[%clk 01:31:17]}
{[%emt 00:00:06]} 3. c3 {[%clk 01:31:20]} {[%emt 00:00:19]} Nf6 {[%clk
01:31:41]} {[%emt 00:00:06]} 4. Bd3 {[%clk 01:31:44]} {[%emt 00:00:07]} Nc6
{[%clk 01:30:13]} {[%emt 00:01:57]} 5. Bc2 {[%clk 01:31:53]} {[%emt 00:00:21]}
d6 {[%clk 01:27:17]} {[%emt 00:03:25]} 6. O-O {[%clk 01:29:35]} {[%emt
00:02:49]} Be7 {[%clk 01:27:22]} {[%emt 00:00:25]} 7. Re1 {[%clk 01:26:58]}
{[%emt 00:03:07]} O-O {[%clk 01:27:02]} {[%emt 00:00:50]} 8. d4 {[%clk
01:26:04]} {[%emt 00:01:25]} cxd4 {[%clk 01:26:41]} {[%emt 00:00:51]} 9. cxd4
{[%clk 01:26:32]} {[%emt 00:00:02]} e5 {[%clk 01:26:41]} {[%emt 00:00:30]} 10.
h3 {[%clk 01:26:05]} {[%emt 00:00:58]} Qb6 {[%clk 01:08:23]} {[%emt 00:18:47]}
11. d5 {[%clk 01:05:05]} {[%emt 00:21:29]} Nb4 {[%clk 01:08:45]} {[%emt
00:00:08]} 12. Bb3 {[%clk 01:00:40]} {[%emt 00:04:55]} Bd7 {[%clk 01:06:29]}
{[%emt 00:02:47]} 13. Nc3 {[%clk 00:57:18]} {[%emt 00:03:53]} Rfc8 {[%clk
01:02:02]} {[%emt 00:04:56]} 14. Re2 {[%clk 00:44:29]} {[%emt 00:13:19]} a5
{[%clk 01:00:20]} {[%emt 00:02:12]} 15. Ne1 {[%clk 00:39:22]} {[%emt 00:05:38]}
Na6 {[%clk 00:50:12]} {[%emt 00:10:37]} 16. Nd3 {[%clk 00:30:02]} {[%emt
00:09:50]} Qc7 {[%clk 00:50:34]} {[%emt 00:00:08]} 17. a4 {[%clk 00:28:35]}
{[%emt 00:01:58]} Nc5 {[%clk 00:46:19]} {[%emt 00:04:44]} 18. Nxc5 {[%clk
00:27:16]} {[%emt 00:01:49]} Qxc5 {[%clk 00:46:42]} {[%emt 00:00:08]} 19. Be3
{[%clk 00:27:10]} {[%emt 00:00:36]} Qc7 {[%clk 00:44:02]} {[%emt 00:03:09]} 20.
Rc1 {[%clk 00:18:53]} {[%emt 00:08:48]} Qd8 {[%clk 00:43:10]} {[%emt 00:01:21]}
21. Rec2 {[%clk 00:14:16]} {[%emt 00:05:08]} Ne8 {[%clk 00:38:08]} {[%emt
00:05:31]} 22. Kh2 {[%clk 00:10:45]} {[%emt 00:04:01]} Bg5 {[%clk 00:37:30]}
{[%emt 00:01:08]} 23. Qd2 {[%clk 00:11:05]} {[%emt 00:00:11]} Bxe3 {[%clk
00:37:20]} {[%emt 00:00:39]} 24. Qxe3 {[%clk 00:11:28]} {[%emt 00:00:07]} Rc5
{[%clk 00:37:01]} {[%emt 00:00:49]} 25. Nb5 {[%clk 00:08:28]} {[%emt 00:03:31]}
b6 {[%clk 00:34:10]} {[%emt 00:03:20]} 26. Rxc5 {[%clk 00:08:41]} {[%emt
00:00:17]} bxc5 {[%clk 00:34:32]} {[%emt 00:00:07]} 27. Bc4 {[%emt 00:00:52]}
h6 {[%clk 00:30:08]} {[%emt 00:04:53]} 28. Nc3 {[%clk 00:05:34]} {[%emt
00:03:17]} Nc7 {[%clk 00:29:41]} {[%emt 00:00:56]} 29. Rf1 {[%clk 00:05:19]}
{[%emt 00:00:46]} Qg5 {[%clk 00:27:02]} {[%emt 00:03:10]} 30. Qe2 {[%clk
00:05:37]} {[%emt 00:00:12]} f5 {[%clk 00:25:10]} {[%emt 00:02:20]} 31. f4
{[%clk 00:04:49]} {[%emt 00:01:19]} exf4 {[%clk 00:19:56]} {[%emt 00:05:44]} 32.
e5 {[%clk 00:05:18]} Qg3+ {[%clk 00:10:46]} {[%emt 00:09:40]} 33. Kh1 {[%clk
00:05:48]} Qe3 {[%clk 00:11:03]} {[%emt 00:00:13]} 34. Qxe3 {[%clk 00:05:17]}
{[%emt 00:01:01]} fxe3 {[%clk 00:11:31]} {[%emt 00:00:02]} 35. e6 {[%clk
00:05:03]} {[%emt 00:00:44]} Be8 {[%clk 00:11:32]} {[%emt 00:00:28]} 36. Rxf5
{[%clk 00:05:02]} {[%emt 00:00:32]} Rb8 {[%clk 00:08:14]} {[%emt 00:03:47]} 37.
b3 {[%clk 00:05:20]} {[%emt 00:00:12]} Bg6 {[%clk 00:07:16]} {[%emt 00:01:28]}
38. Rf3 {[%clk 00:05:48]} {[%emt 00:00:02]} Bc2 {[%clk 00:07:37]} {[%emt
00:00:09]} 39. Nb5 {[%clk 00:00:52]} {[%emt 00:05:27]} e2 {[%clk 00:05:01]}
{[%emt 00:03:05]} 40. Re3 {[%clk 00:01:21]} {[%emt 00:00:01]} Nxb5 {[%clk
00:01:31]} {[%emt 00:04:00]} 41. axb5 {[%clk 00:22:14]} {[%emt 00:09:37]} Bd1
{[%clk 00:27:12]} {[%emt 00:04:49]} 42. e7 {[%clk 00:08:34]} {[%emt 00:14:10]}
Kf7 {[%clk 00:25:24]} {[%emt 00:02:18]} 43. b6 {[%clk 00:07:34]} {[%emt
00:01:31]} a4 {[%clk 00:25:14]} {[%emt 00:00:39]} 44. b7 {[%clk 00:06:46]}
{[%emt 00:01:18]} Re8 {[%clk 00:22:30]} {[%emt 00:03:14]} 45. Bb5 {[%clk
00:06:32]} {[%emt 00:00:45]} Rxe7 {[%clk 00:21:38]} {[%emt 00:01:22]} 46. Rxe7+
{[%clk 00:06:53]} {[%emt 00:00:09]} Kxe7 {[%clk 00:22:03]} {[%emt 00:00:05]} 47.
Bxe2 {[%emt 00:00:24]} 1-0

[Event "21è Open International d'Echecs de Menton"]
[Site "Menton, France"]
[Date "2024.10.28"]
[Round "2.3"]
[White "Paul, RABETTE 2043"]
[Black "Jan, JOHANSSON 2284"]
[Result "1-0"]
[TimeControl "90'+30''/40m + 30'+30''"]
[BlackTitle "IM"]
[WhiteFideId "45162638"]
[BlackFideId "1700103"]
[WhiteElo "2043"]
[BlackElo "2284"]

1. d4 {[%clk 01:26:44]} {[%emt 00:04:15]} Nf6 {[%clk 01:30:33]} {[%emt
00:00:28]} 2. c4 {[%clk 01:27:01]} {[%emt 00:00:13]} e6 {[%clk 01:30:45]}
{[%emt 00:00:18]} 3. Nc3 {[%clk 01:27:23]} {[%emt 00:00:08]} Bb4 {[%clk
01:30:55]} {[%emt 00:00:20]} 4. Nf3 {[%clk 01:27:45]} {[%emt 00:00:07]} c5
{[%clk 01:30:06]} {[%emt 00:01:20]} 5. e3 {[%clk 01:28:01]} {[%emt 00:00:14]}
d6 {[%clk 01:29:18]} {[%emt 00:01:18]} 6. Bd2 {[%clk 01:26:02]} {[%emt
00:02:29]} O-O {[%clk 01:20:46]} {[%emt 00:09:02]} 7. a3 {[%clk 01:23:50]}
{[%emt 00:02:42]} Bxc3 {[%clk 01:19:08]} {[%emt 00:02:08]} 8. Bxc3 {[%clk
01:23:04]} {[%emt 00:01:15]} Ne4 {[%clk 01:17:41]} {[%emt 00:01:57]} 9. Qc2
{[%clk 01:20:33]} {[%emt 00:03:01]} Nxc3 {[%clk 01:14:00]} {[%emt 00:04:12]} 10.
Qxc3 {[%clk 01:20:36]} {[%emt 00:00:27]} Nc6 {[%clk 01:07:02]} {[%emt
00:07:28]} 11. Be2 {[%clk 01:17:40]} {[%emt 00:03:24]} Qe7 {[%clk 00:58:25]}
{[%emt 00:09:09]} 12. O-O {[%clk 01:13:13]} {[%emt 00:04:54]} e5 {[%clk
00:58:24]} {[%emt 00:00:33]} 13. dxe5 {[%clk 01:04:36]} {[%emt 00:09:08]} dxe5
{[%clk 00:54:07]} {[%emt 00:04:47]} 14. Rfd1 {[%clk 01:02:15]} {[%emt
00:02:50]} f5 {[%clk 00:43:02]} {[%emt 00:11:36]} 15. Ne1 {[%clk 00:52:07]}
{[%emt 00:10:38]} f4 {[%clk 00:36:17]} {[%emt 00:07:15]} 16. exf4 {[%clk
00:46:57]} {[%emt 00:05:39]} Rxf4 {[%clk 00:29:29]} {[%emt 00:07:18]} 17. Nc2
{[%clk 00:40:33]} {[%emt 00:06:54]} Nd4 {[%clk 00:27:32]} {[%emt 00:02:28]} 18.
Nxd4 {[%clk 00:39:16]} {[%emt 00:01:47]} exd4 {[%clk 00:17:55]} {[%emt
00:10:07]} 19. Qg3 {[%clk 00:38:11]} {[%emt 00:01:34]} Qf6 {[%clk 00:13:04]}
{[%emt 00:05:22]} 20. Bf3 {[%clk 00:35:07]} {[%emt 00:03:33]} Kh8 {[%clk
00:09:48]} {[%emt 00:03:47]} 21. Re1 {[%clk 00:33:20]} {[%emt 00:02:17]} Bd7
{[%clk 00:09:57]} {[%emt 00:00:21]} 22. Bxb7 {[%clk 00:29:19]} {[%emt
00:04:31]} Rf8 {[%clk 00:10:19]} {[%emt 00:00:08]} 23. f3 {[%clk 00:24:19]}
{[%emt 00:05:31]} d3 {[%clk 00:06:17]} {[%emt 00:04:32]} 24. Rad1 {[%clk
00:14:31]} {[%emt 00:10:18]} Qd4+ {[%clk 00:03:25]} {[%emt 00:03:22]} 25. Kh1
{[%clk 00:13:01]} {[%emt 00:02:00]} Ba4 {[%clk 00:03:42]} {[%emt 00:00:13]} 26.
Rd2 {[%clk 00:11:12]} {[%emt 00:02:20]} Qxc4 {[%clk 00:04:01]} {[%emt
00:00:11]} 27. Be4 {[%clk 00:10:42]} {[%emt 00:01:00]} Bc2 {[%clk 00:03:56]}
{[%emt 00:00:34]} 28. Bxd3 {[%clk 00:09:13]} {[%emt 00:01:59]} Bxd3 {[%clk
00:04:14]} {[%emt 00:00:13]} 29. Rxd3 {[%clk 00:09:35]} {[%emt 00:00:09]} R4f7
{[%clk 00:03:24]} {[%emt 00:01:19]} 30. Rc3 {[%clk 00:08:34]} {[%emt 00:01:31]}
Qd4 {[%clk 00:03:31]} {[%emt 00:00:23]} 31. Qe5 {[%clk 00:07:36]} {[%emt
00:01:29]} Qd2 {[%clk 00:03:51]} {[%emt 00:00:10]} 32. Qe2 {[%clk 00:07:27]}
{[%emt 00:00:38]} Qd5 {[%clk 00:03:15]} {[%emt 00:01:06]} 33. Rec1 {[%clk
00:07:18]} {[%emt 00:00:38]} Rc7 {[%clk 00:03:20]} {[%emt 00:00:27]} 34. b4
{[%clk 00:05:14]} {[%emt 00:02:34]} Qg5 {[%clk 00:03:43]} {[%emt 00:00:07]} 35.
bxc5 {[%clk 00:01:11]} {[%emt 00:04:33]} h6 {[%clk 00:03:51]} {[%emt 00:00:21]}
36. Qe3 {[%clk 00:01:10]} {[%emt 00:00:30]} Qh5 {[%clk 00:03:58]} {[%emt
00:00:24]} 37. c6 {[%clk 00:01:01]} {[%emt 00:00:39]} Re8 {[%clk 00:04:22]}
{[%emt 00:00:05]} 38. Qf4 {[%clk 00:01:01]} {[%emt 00:00:30]} Qa5 {[%clk
00:04:31]} {[%emt 00:00:23]} 39. h3 {[%clk 00:00:51]} {[%emt 00:00:39]} Rec8
{[%clk 00:04:28]} {[%emt 00:00:32]} 40. Qe4 {[%clk 00:00:35]} {[%emt 00:00:46]}
Qb6 {[%clk 00:04:06]} {[%emt 00:00:52]} 41. Rc5 {[%clk 00:24:30]} {[%emt
00:06:35]} Qb2 {[%clk 00:33:27]} {[%emt 00:01:09]} 42. a4 {[%clk 00:24:30]}
{[%emt 00:00:30]} Qd2 {[%clk 00:33:40]} {[%emt 00:00:17]} 43. Qe5 {[%clk
00:21:59]} {[%emt 00:03:01]} Qd3 {[%clk 00:33:16]} {[%emt 00:00:54]} 44. R5c4
{[%clk 00:21:58]} {[%emt 00:00:31]} Qd2 {[%clk 00:32:37]} {[%emt 00:01:10]} 45.
f4 {[%clk 00:21:56]} {[%emt 00:00:32]} 1-0

[Event "21è Open International d'Echecs de Menton"]
[Site "Menton, France"]
[Date "2024.10.29"]
[Round "3.1"]
[White "Jean-Marc, DEGRAEVE 2479"]
[Black "Etienne, CHAUMET 2104"]
[Result "1-0"]
[TimeControl "90'+30''/40m + 30'+30''"]
[WhiteTitle "GM"]
[WhiteFideId "600270"]
[BlackFideId "45180288"]
[WhiteElo "2479"]
[BlackElo "2104"]

1. e4 {[%clk 01:30:55]} {[%emt 00:00:04]} c5 {[%clk 01:30:50]} {[%emt
00:00:10]} 2. Nf3 {[%clk 01:31:15]} {[%emt 00:00:10]} d6 {[%clk 01:31:11]}
{[%emt 00:00:09]} 3. c3 {[%clk 01:31:26]} {[%emt 00:00:20]} Nf6 {[%clk
01:31:19]} {[%emt 00:00:21]} 4. Be2 {[%clk 01:31:49]} {[%emt 00:00:07]} Nc6
{[%clk 01:28:11]} {[%emt 00:03:39]} 5. d4 {[%clk 01:32:14]} {[%emt 00:00:05]}
cxd4 {[%clk 01:27:52]} {[%emt 00:00:49]} 6. cxd4 {[%clk 01:32:43]} {[%emt
00:00:01]} Nxe4 {[%clk 01:17:01]} {[%emt 00:11:20]} 7. d5 {[%clk 01:32:52]}
{[%emt 00:00:21]} Qa5+ {[%clk 01:17:02]} {[%emt 00:00:29]} 8. Nc3 {[%clk
01:33:16]} {[%emt 00:00:06]} Nxc3 {[%clk 01:11:55]} {[%emt 00:05:36]} 9. bxc3
{[%clk 01:33:38]} {[%emt 00:00:09]} Ne5 {[%clk 01:09:32]} {[%emt 00:02:53]} 10.
Nxe5 {[%clk 01:33:41]} {[%emt 00:00:27]} Qxc3+ {[%clk 01:06:30]} {[%emt
00:03:33]} 11. Bd2 {[%clk 01:33:00]} {[%emt 00:01:10]} Qxe5 {[%clk 01:06:45]}
{[%emt 00:00:14]} 12. O-O {[%clk 01:33:13]} {[%emt 00:00:18]} Bd7 {[%clk
01:03:00]} {[%emt 00:04:15]} 13. Rb1 {[%clk 01:29:55]} {[%emt 00:03:47]} b6
{[%clk 01:01:56]} {[%emt 00:01:34]} 14. Re1 {[%clk 01:28:59]} {[%emt 00:01:26]}
Rc8 {[%clk 00:54:39]} {[%emt 00:07:47]} 15. Ba6 {[%clk 01:28:41]} {[%emt
00:00:48]} Qxd5 {[%clk 00:54:49]} {[%emt 00:00:20]} 16. Bxc8 {[%clk 01:29:05]}
{[%emt 00:00:06]} Bxc8 {[%clk 00:55:02]} {[%emt 00:00:17]} 17. Qa4+ {[%clk
01:29:16]} {[%emt 00:00:18]} Kd8 {[%clk 00:53:43]} {[%emt 00:01:49]} 18. Qxa7
{[%clk 01:28:28]} {[%emt 00:01:18]} Qxd2 {[%clk 00:45:49]} {[%emt 00:08:24]} 19.
Qxb6+ {[%clk 01:27:31]} {[%emt 00:01:27]} Kd7 {[%clk 00:45:39]} {[%emt
00:00:40]} 20. Qa7+ {[%clk 01:27:48]} {[%emt 00:00:14]} Kd8 {[%clk 00:45:24]}
{[%emt 00:00:45]} 21. Qb6+ {[%clk 01:28:08]} {[%emt 00:00:10]} Kd7 {[%clk
00:45:49]} {[%emt 00:00:05]} 22. Rbc1 {[%clk 01:28:31]} {[%emt 00:00:07]} e5
{[%clk 00:44:23]} {[%emt 00:01:55]} 23. Qc7+ {[%clk 01:28:47]} {[%emt
00:00:15]} Ke6 {[%clk 00:44:46]} {[%emt 00:00:07]} 24. Qxc8+ {[%clk 01:29:01]}
{[%emt 00:00:16]} Kf6 {[%clk 00:44:44]} {[%emt 00:00:31]} 25. a4 {[%clk
01:25:04]} {[%emt 00:04:27]} g6 {[%clk 00:43:23]} {[%emt 00:01:51]} 26. Qd8+
{[%clk 01:25:13]} {[%emt 00:00:21]} Kg7 {[%clk 00:43:00]} {[%emt 00:00:54]} 27.
a5 {[%clk 01:25:34]} {[%emt 00:00:08]} d5 {[%clk 00:42:09]} {[%emt 00:01:21]}
28. Rcd1 {[%clk 01:25:11]} {[%emt 00:00:53]} Qxf2+ {[%clk 00:39:53]} {[%emt
00:02:46]} 29. Kxf2 {[%clk 01:25:13]} {[%emt 00:00:28]} Bc5+ {[%clk 00:40:17]}
{[%emt 00:00:06]} 30. Kf1 {[%clk 01:25:24]} {[%emt 00:00:18]} Rxd8 {[%clk
00:40:41]} {[%emt 00:00:07]} 31. Rxe5 {[%clk 01:25:50]} {[%emt 00:00:05]} Ra8
{[%clk 00:40:43]} {[%emt 00:00:28]} 32. Rdxd5 {[%clk 01:26:03]} {[%emt
00:00:17]} Bb4 {[%clk 00:40:39]} {[%emt 00:00:33]} 33. Rb5 {[%clk 01:26:26]}
{[%emt 00:00:06]} Bd6 {[%clk 00:38:53]} {[%emt 00:02:17]} 34. Re3 {[%clk
01:25:09]} {[%emt 00:01:48]} Bc7 {[%clk 00:38:53]} {[%emt 00:00:30]} 35. Ra3
{[%clk 01:25:30]} {[%emt 00:00:08]} Bd6 {[%clk 00:33:58]} {[%emt 00:05:26]} 36.
Rf3 {[%clk 01:23:20]} {[%emt 00:02:40]} Bc7 {[%clk 00:31:16]} {[%emt 00:03:13]}
37. Rb7 {[%clk 01:23:41]} {[%emt 00:00:08]} Bxa5 {[%clk 00:31:40]} {[%emt
00:00:05]} 38. Rfxf7+ {[%clk 01:24:07]} {[%emt 00:00:04]} Kh6 {[%clk 00:31:36]}
{[%emt 00:00:34]} 39. Rxh7+ {[%clk 01:24:33]} {[%emt 00:00:04]} Kg5 {[%clk
00:31:59]} {[%emt 00:00:07]} 40. Ra7 {[%clk 01:24:57]} {[%emt 00:00:07]} Rf8+
{[%clk 00:31:36]} {[%emt 00:00:53]} 41. Rhf7 {[%clk 01:25:22]} {[%emt
00:00:05]} Rxf7+ {[%clk 00:31:56]} {[%emt 00:00:11]} 42. Rxf7 {[%clk 01:25:50]}
{[%emt 00:00:02]} Bb4 {[%clk 00:30:37]} {[%emt 00:01:48]} 43. Kf2 {[%clk
01:25:52]} {[%emt 00:00:27]} Bd6 {[%clk 00:30:40]} {[%emt 00:00:28]} 44. h3
{[%clk 01:26:02]} {[%emt 00:00:20]} Bb4 {[%clk 00:25:51]} {[%emt 00:05:19]} 45.
Kf3 {[%clk 01:24:46]} {[%emt 00:01:47]} Bc3 {[%clk 00:24:52]} {[%emt 00:01:28]}
46. g3 {[%clk 01:24:02]} {[%emt 00:01:14]} Kh6 {[%clk 00:20:26]} {[%emt
00:04:56]} 47. h4 {[%clk 01:23:41]} {[%emt 00:00:51]} Be1 {[%clk 00:27:43]}
{[%emt 00:23:12]} 48. Ra7 {[%clk 01:53:56]} {[%emt 00:00:15]} g5 {[%clk
00:26:27]} {[%emt 00:01:46]} 49. Ra6+ {[%clk 01:54:21]} {[%emt 00:00:05]} Kh5
{[%clk 00:26:51]} {[%emt 00:00:06]} 50. g4+ {[%clk 01:54:47]} {[%emt 00:00:04]}
Kxh4 {[%clk 00:27:15]} {[%emt 00:00:06]} 51. Rh6+ {[%emt 00:00:05]} 1-0

[Event "21è Open International d'Echecs de Menton"]
[Site "Menton, France"]
[Date "2024.10.29"]
[Round "3.2"]
[White "Sylvain, CARRE 2104"]
[Black "Paolo, FORMENTO 2346"]
[Result "0-1"]
[TimeControl "90'+30''/40m + 30'+30''"]
[BlackTitle "FM"]
[WhiteFideId "642118"]
[BlackFideId "861162"]
[WhiteElo "2104"]
[BlackElo "2346"]

1. d4 {[%clk 01:30:57]} {[%emt 00:00:02]} d5 {[%clk 01:19:40]} {[%emt
00:11:12]} 2. Bf4 {[%clk 01:31:03]} {[%emt 00:00:33]} c5 {[%clk 01:19:42]}
{[%emt 00:00:28]} 3. e3 {[%clk 01:31:15]} {[%emt 00:00:18]} cxd4 {[%clk
01:19:26]} {[%emt 00:00:47]} 4. exd4 {[%clk 01:31:34]} {[%emt 00:00:10]} Nc6
{[%clk 01:19:51]} {[%emt 00:00:06]} 5. c3 {[%clk 01:30:11]} {[%emt 00:01:56]}
Bf5 {[%clk 01:20:07]} {[%emt 00:00:11]} 6. Nf3 {[%clk 01:25:32]} {[%emt
00:05:08]} e6 {[%clk 01:20:14]} {[%emt 00:00:24]} 7. Qb3 {[%clk 01:23:57]}
{[%emt 00:02:05]} Qd7 {[%clk 01:20:09]} {[%emt 00:00:35]} 8. Bb5 {[%clk
01:21:53]} {[%emt 00:02:34]} f6 {[%clk 01:20:03]} {[%emt 00:00:36]} 9. O-O
{[%clk 01:20:30]} {[%emt 00:01:53]} g5 {[%clk 01:20:18]} {[%emt 00:00:15]} 10.
Bg3 {[%clk 01:13:34]} {[%emt 00:07:25]} h5 {[%clk 01:19:30]} {[%emt 00:01:18]}
11. h4 {[%clk 01:11:29]} {[%emt 00:02:35]} g4 {[%clk 01:19:44]} {[%emt
00:00:17]} 12. Ne1 {[%clk 01:10:06]} {[%emt 00:01:52]} a6 {[%clk 01:14:06]}
{[%emt 00:06:08]} 13. Bd3 {[%clk 01:09:03]} {[%emt 00:01:34]} Nge7 {[%clk
01:14:07]} {[%emt 00:00:29]} 14. Nd2 {[%clk 01:02:15]} {[%emt 00:07:17]} Kf7
{[%clk 01:07:13]} {[%emt 00:07:24]} 15. Qd1 {[%clk 00:56:00]} {[%emt 00:06:45]}
Ng6 {[%clk 00:48:09]} {[%emt 00:19:35]} 16. Nb3 {[%clk 00:45:54]} {[%emt
00:10:36]} b6 {[%clk 00:42:27]} {[%emt 00:06:12]} 17. Rc1 {[%clk 00:26:38]}
{[%emt 00:19:46]} Bh6 {[%clk 00:36:36]} {[%emt 00:06:21]} 18. Rc2 {[%clk
00:27:04]} {[%emt 00:00:05]} Nf4 {[%clk 00:19:59]} {[%emt 00:17:08]} 19. Bxf5
{[%clk 00:21:57]} {[%emt 00:05:36]} exf5 {[%clk 00:20:21]} {[%emt 00:00:08]} 20.
Bxf4 {[%clk 00:21:34]} {[%emt 00:00:52]} Bxf4 {[%clk 00:20:50]} {[%emt
00:00:01]} 21. Nd3 {[%clk 00:21:50]} {[%emt 00:00:15]} Bd6 {[%clk 00:17:47]}
{[%emt 00:03:33]} 22. f4 {[%clk 00:20:47]} {[%emt 00:01:33]} Rhe8 {[%clk
00:10:14]} {[%emt 00:08:03]} 23. Re1 {[%clk 00:20:40]} {[%emt 00:00:37]} Re4
{[%clk 00:09:58]} {[%emt 00:00:46]} 24. Rce2 {[%clk 00:17:44]} {[%emt
00:03:26]} Ne7 {[%clk 00:06:59]} {[%emt 00:03:29]} 25. g3 {[%clk 00:14:44]}
{[%emt 00:03:30]} Qb5 {[%clk 00:06:17]} {[%emt 00:01:12]} 26. Nf2 {[%clk
00:11:39]} {[%emt 00:03:35]} Rxe2 {[%clk 00:05:08]} {[%emt 00:01:39]} 27. Rxe2
{[%clk 00:11:30]} {[%emt 00:00:39]} Re8 {[%clk 00:03:44]} {[%emt 00:01:55]} 28.
Qc2 {[%clk 00:09:36]} {[%emt 00:02:24]} a5 {[%clk 00:02:39]} {[%emt 00:01:35]}
29. Nc1 {[%clk 00:09:44]} {[%emt 00:00:21]} a4 {[%clk 00:02:19]} {[%emt
00:00:50]} 30. a3 {[%clk 00:09:09]} {[%emt 00:01:05]} Qc6 {[%clk 00:01:39]}
{[%emt 00:01:10]} 31. Nd1 {[%clk 00:08:33]} {[%emt 00:01:05]} b5 {[%clk
00:00:40]} {[%emt 00:01:29]} 32. Ne3 {[%clk 00:07:33]} {[%emt 00:01:30]} Qd7
{[%clk 00:01:10]} 33. Kf2 {[%clk 00:04:37]} {[%emt 00:03:27]} Kg6 {[%clk
00:01:07]} {[%emt 00:00:32]} 34. Nd3 {[%clk 00:03:25]} {[%emt 00:01:41]} Rc8
{[%clk 00:00:47]} {[%emt 00:00:51]} 35. Qb1 {[%clk 00:03:16]} {[%emt 00:00:39]}
Rc6 {[%clk 00:00:39]} {[%emt 00:00:38]} 36. Qa2 {[%clk 00:03:17]} {[%emt
00:00:29]} Rc4 {[%clk 00:00:39]} {[%emt 00:00:31]} 37. Nxc4 {[%clk 00:03:04]}
{[%emt 00:00:42]} dxc4 {[%emt 00:00:19]} 38. Ne1 {[%clk 00:01:32]} {[%emt
00:02:01]} Qc6 {[%clk 00:00:34]} {[%emt 00:00:47]} 39. Qb1 {[%clk 00:01:38]}
{[%emt 00:00:23]} Qh1 {[%clk 00:00:35]} {[%emt 00:00:30]} 40. Re6 {[%clk
00:00:36]} {[%emt 00:01:31]} Nc8 {[%clk 00:00:31]} {[%emt 00:00:34]} 41. Qc1
{[%clk 00:26:16]} {[%emt 00:04:50]} Be7 {[%clk 00:18:03]} {[%emt 00:12:59]} 42.
Re2 {[%clk 00:16:52]} {[%emt 00:09:53]} Qd5 {[%clk 00:11:01]} {[%emt 00:07:32]}
43. Qe3 {[%clk 00:16:27]} {[%emt 00:00:55]} Kf7 {[%clk 00:11:22]} {[%emt
00:00:09]} 44. Nc2 {[%clk 00:15:45]} {[%emt 00:01:11]} Qd7 {[%clk 00:11:27]}
{[%emt 00:00:25]} 45. d5 {[%clk 00:08:55]} {[%emt 00:07:20]} Qxd5 {[%clk
00:09:00]} {[%emt 00:02:57]} 46. Nd4 {[%clk 00:09:18]} {[%emt 00:00:06]} Qd7
{[%clk 00:04:00]} {[%emt 00:05:30]} 47. Qe6+ {[%clk 00:07:51]} {[%emt
00:01:57]} Qxe6 {[%clk 00:04:26]} {[%emt 00:00:05]} 48. Nxe6 {[%clk 00:07:42]}
{[%emt 00:00:39]} Nd6 {[%clk 00:04:25]} {[%emt 00:00:31]} 49. Nd4 {[%clk
00:06:58]} {[%emt 00:01:13]} Ke8 {[%clk 00:02:32]} {[%emt 00:02:24]} 50. Nc6
{[%clk 00:06:22]} {[%emt 00:01:05]} Ne4+ {[%clk 00:02:56]} {[%emt 00:00:06]} 51.
Kg2 {[%clk 00:06:48]} {[%emt 00:00:04]} Bc5 {[%clk 00:03:04]} {[%emt 00:00:22]}
52. Nb4 {[%clk 00:05:53]} {[%emt 00:01:25]} Bxb4 {[%clk 00:02:23]} {[%emt
00:01:12]} 53. axb4 {[%clk 00:05:57]} {[%emt 00:00:26]} Kd7 {[%clk 00:02:44]}
{[%emt 00:00:09]} 54. Re1 {[%clk 00:05:18]} {[%emt 00:01:08]} a3 {[%clk
00:01:39]} {[%emt 00:01:36]} 55. bxa3 {[%clk 00:05:28]} {[%emt 00:00:20]} Nxc3
{[%clk 00:02:07]} {[%emt 00:00:02]} 56. Kf2 {[%clk 00:03:04]} {[%emt 00:02:54]}
Ne4+ {[%clk 00:02:15]} {[%emt 00:00:23]} 57. Ke3 {[%clk 00:01:11]} {[%emt
00:02:23]} Nxg3 {[%clk 00:02:30]} {[%emt 00:00:15]} 58. a4 {[%clk 00:01:10]}
{[%emt 00:00:30]} bxa4 {[%clk 00:02:26]} {[%emt 00:00:34]} 59. Ra1 {[%clk
00:01:06]} {[%emt 00:00:34]} Kc6 {[%clk 00:02:20]} {[%emt 00:00:36]} 60. Rxa4
{[%clk 00:01:08]} {[%emt 00:00:28]} Kb5 {[%clk 00:02:50]} 61. Ra8 {[%clk
00:01:14]} {[%emt 00:00:23]} Kxb4 {[%clk 00:03:10]} {[%emt 00:00:10]} 62. Rb8+
{[%clk 00:01:32]} {[%emt 00:00:12]} Kc3 {[%clk 00:03:05]} {[%emt 00:00:35]} 63.
Rb6 {[%clk 00:00:54]} {[%emt 00:01:07]} Ne4 {[%clk 00:03:24]} {[%emt 00:00:12]}
64. Rb5 {[%clk 00:00:45]} {[%emt 00:00:39]} g3 {[%clk 00:03:46]} {[%emt
00:00:09]} 65. Kf3 {[%clk 00:01:02]} {[%emt 00:00:12]} Kd4 {[%clk 00:03:21]}
{[%emt 00:00:55]} 66. Rxf5 {[%clk 00:00:58]} {[%emt 00:00:34]} c3 {[%clk
00:03:41]} {[%emt 00:00:11]} 67. Ra5 {[%clk 00:01:13]} {[%emt 00:00:14]} c2
{[%clk 00:03:46]} {[%emt 00:00:25]} 68. Ra1 {[%clk 00:00:32]} {[%emt 00:01:12]}
Nd2+ {[%clk 00:04:06]} {[%emt 00:00:10]} 69. Kxg3 {[%clk 00:00:38]} {[%emt
00:00:24]} Nb1 {[%clk 00:04:29]} {[%emt 00:00:07]} 70. Ra4+ {[%clk 00:00:49]}
{[%emt 00:00:18]} Kd3 {[%clk 00:04:31]} {[%emt 00:00:29]} 0-1